{"text_format":"1","workbook":"xlsx","n_sheets":4,"sheets":["Named range","Main","Formatting Cells","VBA"],"not_rendered":{"charts":0,"images":0,"macros":1,"external_links":0,"defined_names":7,"comments":0,"pivot_tables":0},"unopened":[],"bounds":{"document_bytes":16777216,"sheet_cells":100000,"rows_first":2000,"rows_last":500,"rows_between":2000,"halvings":0,"cell_chars":16384,"cell_head_chars":4096},"cells_cut":0,"cells_raw":0,"read":"whole","date_system":"1900"}

{"sheet":"Named range","index":0,"n_rows":6,"n_cols":6,"rows_kept":6,"cut":false,"hidden":false,"merged":[[1,1,1,5]]}
[]
[null," Named Range in Excel"]
[]
[null,"Item ","Jan ","Feb ","March ","Total Sales"]
[null,"Apples",256,365,302,{"$f":" SUM(Apples)","v":923}]
[null,null,null,null,null,{"$f":"_xlfn.FORMULATEXT(F5)","v":"= SUM(Apples)"}]

{"sheet":"Main","index":1,"n_rows":11,"n_cols":6,"rows_kept":11,"cut":false,"hidden":false,"merged":[[1,1,1,5]]}
[]
[null,"How to Delete All Named Ranges in Excel"]
[]
[null,"Item ","Jan ","Feb ","March ","Total Sales"]
[null,"Apples",256,365,302,{"$f":" SUM(Apples)","v":923}]
[null,"Oranges ",263,561,456,{"$f":"SUM(Oranges)","v":1280}]
[null,"Bananas",356,458,423,{"$f":"SUM(Bananas)","v":1237}]
[null,"Lemons ",258,325,365,{"$f":"SUM(Lemons)","v":948}]
[null,"Strawberries",632,656,696,{"$f":"SUM(Strawberries)","v":1984}]
[null,"Green Grapes",128,226,256,{"$f":"SUM(Green_Grapes)","v":610}]
[null,"Blueberries",698,705,725,{"$f":"SUM(Blueberries)","v":2128}]

{"sheet":"Formatting Cells","index":2,"n_rows":11,"n_cols":6,"rows_kept":11,"cut":false,"hidden":false,"merged":[[1,1,1,5]]}
[]
[null,"How to Delete All Named Ranges in Excel"]
[]
[null,"Item ","Jan ","Feb ","March ","Total Sales"]
[null,"Apples",256,365,302,{"$f":" SUM(Apples)","v":923}]
[null,"Oranges ",263,561,456,{"$f":"SUM(Oranges)","v":1280}]
[null,"Bananas",356,458,423,{"$f":"SUM(Bananas)","v":1237}]
[null,"Lemons ",258,325,365,{"$f":"SUM(Lemons)","v":948}]
[null,"Strawberries",632,656,696,{"$f":"SUM(Strawberries)","v":1984}]
[null,"Green Grapes",128,226,256,{"$f":"SUM(Green_Grapes)","v":610}]
[null,"Blueberries",698,705,725,{"$f":"SUM(Blueberries)","v":2128}]

{"sheet":"VBA","index":3,"n_rows":11,"n_cols":6,"rows_kept":11,"cut":false,"hidden":false,"merged":[[1,1,1,5]]}
[]
[null,"Delete All Named Ranges Using VBA"]
[]
[null,"Item ","Jan ","Feb ","March ","Total Sales"]
[null,"Apples",256,365,302,{"$f":" SUM(Apples)","v":923}]
[null,"Oranges ",263,561,456,{"$f":"SUM(Oranges)","v":1280}]
[null,"Bananas",356,458,423,{"$f":"SUM(Bananas)","v":1237}]
[null,"Lemons ",258,325,365,{"$f":"SUM(Lemons)","v":948}]
[null,"Strawberries",632,656,696,{"$f":"SUM(Strawberries)","v":1984}]
[null,"Green Grapes",128,226,256,{"$f":"SUM(Green_Grapes)","v":610}]
[null,"Blueberries",698,705,725,{"$f":"SUM(Blueberries)","v":2128}]